[Event "LTU-chT 2020"]
[Site "Vilnius"]
[Date "2020.09.27"]
[Round "6.10"]
[White "Burstein, Roman"]
[Black "Baliasnyj, Timur"]
[Result "1-0"]
[ECO "A39"]
[WhiteElo "2302"]
[BlackElo "2211"]
[Annotator "ChessBase"]
[PlyCount "73"]
[EventDate "2020.09.25"]
[EventType "team-tourn"]
[EventCountry "LTU"]
[SourceTitle "playchess.com"]
[Source "ChessBase"]
[SourceQuality "1"]
[TimeControl "40/5400+30:1800+30"]

1. c4 {[%emt 0:00:00]} c5 {[%emt 0:00:00]} 2. g3 {[%emt 0:00:00]} g6 {[%emt 0:00:31]} 3. Bg2 {[%emt 0:00:00]} Bg7 {[%emt 0:00:07]} 4. Nc3 {[%emt 0:00:08]} Nc6 {[%emt 0:00:09]} 5. Nf3 {[%emt 0:00:34]} Nf6 {[%emt 0:00:06]} 6. O-O {[%emt 0:00:23]} O-O {[%emt 0:00:05]} 7. d4 {[%emt 0:01:30]} cxd4 {[%emt 0:00:07]} 8. Nxd4 {[%emt 0:00:02]} Nxd4 {[%emt 0:00:06]} 9. Qxd4 {[%emt 0:00:05]} d6 {[%emt 0:00:02]} 10. Qd2 {[%emt 0:19:36]} Be6 {[%emt 0:06:20]} 11. Bxb7 {[%emt 0:04:04]} Rb8 {[%emt 0:00:06]} 12. Bg2 {[%emt 0:00:18]} Bxc4 {[%emt 0:09:28]} 13. b3 {[%emt 0:09:24]} Nd5 {[%emt 0:09:00]} 14. Bb2 {[%emt 0:06:15]} Nxc3 {[%emt 0:01:24]} 15. Bxc3 {[%emt 0:00:27]} Bxc3 {[%emt 0:03:12]} 16. Qxc3 {[%emt 0:00:09]} Bxe2 {[%emt 0:00:30]} 17. Rfe1 {[%emt 0:00:11]} Bb5 {[%emt 0:00:24]} 18. Qe3 {[%emt 0:01:32]} Qa5 {[%emt 0:00:15]} 19. b4 {[%emt 0:12:19]} Qxb4 {[%emt 0:06:34]} 20. Qxa7 {[%emt 0:02:07]} e6 {[%emt 0:00:14]} 21. Rab1 {[%emt 0:06:56]} Qa4 {[%emt 0:02:47]} 22. Qc7 {[%emt 0:03:19]} Rbd8 {[%emt 0:09:16]} 23. Qb6 {[%emt 0:08:44]} Bc4 {[%emt 0:05:52]} 24. h4 {[%emt 0:05:53]} d5 {[%emt 0:20:57]} 25. h5 {[%emt 0:02:27]} Qa3 {[%emt 0:04:02]} 26. Qd4 {[%emt 0:03:43]} Qd3 {[%emt 0:00:20]} 27. Qa1 {[%emt 0:00:21]} Qd2 {[%emt 0:05:13]} 28. Qf6 {[%emt 0:01:57]} Rb8 {[%emt 0:03:43]} 29. f4 {[%emt 0:03:27]} Rxb1 {[%emt 0:03:51]} 30. Rxb1 {[%emt 0:00:23]} Qe3+ {[%emt 0:00:06]} 31. Kh2 {[%emt 0:00:40]} Qe2 {[%emt 0:00:11]} 32. hxg6 {[%emt 0:02:21]} Qh5+ {[%emt 0:04:58]} 33. Kg1 {[%emt 0:00:04]} Qxg6 {[%emt 0:00:06]} 34. Qxg6+ {[%emt 0:01:20]} hxg6 {[%emt 0:00:15]} 35. a4 {[%emt 0:00:52]} Ra8 {[%emt 0:00:41]} 36. Rb4 {[%emt 0:00:01]} Kf8 {[%emt 0:03:28]} 37. Rxc4 1-0